bitfinex-derivatives/quotes_ETHF0:USTF0_20260119
["timestamp","ask_amount","ask_price","bid_price","bid_amount"]
[1768865412605,1.45808859,3186.2,3185.2,3.309]
[1768865412990,1.31658176,3185.9,3185.0,0.00257165]
[1768865413190,1.45808859,3186.0,3185.0,3.02357165]
[1768865413391,0.00299921,3186.3,3185.0,4.34015341]
[1768865413597,0.00299921,3186.3,3185.0,0.00257165]
[1768865413793,0.00299921,3186.3,3185.0,3.31157165]
[1768865414706,1.45808859,3186.2,3185.0,0.00257165]
[1768865414909,1.31658176,3185.8,3185.0,0.00257165]
[1768865418522,1.31658176,3185.4,3185.0,0.00257165]
[1768865418716,1.31658176,3185.4,3184.7,3.316]
[1768865418908,1.31658176,3185.6,3184.7,3.316]
[1768865419308,1.31658176,3185.7,3184.7,3.316]
[1768865419621,1.31658176,3185.7,3184.7,3.31899858]
[1768865420319,0.15702,3186.2,3184.7,4.63558034]
[1768865420623,0.89833048,3186.1,3185.1,1.31658176]
[1768865420924,0.89833048,3186.0,3184.9,1.31658176]
[1768865421125,0.89833048,3185.9,3184.9,1.31658176]
[1768865421315,0.00299921,3186.3,3185.4,1.31658176]
[1768865421623,0.00299921,3186.3,3185.5,3.319]
[1768865422317,0.00299921,3186.3,3185.5,4.63558176]
[1768865423324,0.00299921,3186.3,3185.7,1.31658176]
[1768865423622,1.10512439,3187.0,3185.7,1.31658176]
[1768865423822,0.89861494,3186.9,3185.7,1.31658176]
[1768865424020,0.89861494,3186.8,3185.7,1.31658176]
[1768865424217,0.14150683,3187.2,3186.0,1.31658176]
[1768865424425,0.89852657,3187.1,3186.0,1.31658176]
[1768865424717,0.89852657,3187.0,3186.2,1.31658176]
[1768865424918,0.00404966,3187.2,3186.0,1.31658176]
[1768865425225,0.89856493,3187.1,3186.0,1.31658176]
[1768865425422,0.89856493,3187.0,3185.6,0.15939152]
[1768865425610,0.00404966,3187.2,3185.8,1.31658176]
[1768865425815,0.89847887,3187.1,3185.9,1.278]
[1768865426015,0.89847887,3187.0,3186.0,1.31658176]
[1768865426325,0.00404966,3187.2,3186.0,1.31658176]
[1768865426622,0.89844087,3187.1,3186.0,1.31658176]
[1768865426822,0.89844087,3187.0,3186.0,1.31658176]
[1768865427022,0.00404966,3187.2,3186.0,1.31658176]
[1768865427323,0.89870105,3187.1,3186.0,1.31658176]
[1768865427514,0.89870105,3187.0,3186.0,1.31658176]
[1768865427715,0.00404966,3187.2,3186.0,1.31658176]
[1768865427916,0.89854122,3187.1,3186.0,1.31658176]
[1768865428121,0.89854122,3187.0,3186.0,1.31658176]
[1768865428318,0.00404966,3187.2,3186.0,1.31658176]
[1768865428520,0.89862732,3187.1,3186.0,1.31658176]
[1768865428724,0.89862732,3187.0,3186.0,1.31658176]
[1768865428925,0.00404966,3187.2,3186.2,1.31658176]
[1768865429120,0.8989412,3187.1,3186.2,1.31658176]
[1768865429325,0.00404966,3187.2,3186.5,1.31658176]
[1768865429524,0.00404966,3187.2,3185.9,42.23504]
[1768865429825,0.00404966,3187.2,3186.3,1.31658176]
[1768865430624,0.00404966,3187.2,3186.4,3.324]
[1768865431223,0.00404966,3187.2,3186.5,1.31658176]
[1768865431421,0.00404966,3187.2,3186.3,1.31658176]
[1768865431720,0.00404966,3187.2,3186.6,3.325]
[1768865432518,1.31658176,3187.0,3185.9,44.09804]
[1768865432718,1.31658176,3187.0,3186.0,3.327]
[1768865433227,0.14887929,3187.2,3186.0,3.327]
[1768865433228,1.46546105,3187.2,3186.0,3.327]
[1768865433530,0.89779641,3187.1,3186.0,3.327]
[1768865433714,1.46546105,3187.2,3186.0,3.327]
[1768865433914,0.89779964,3187.1,3186.0,4.64358176]
[1768865434114,0.14887929,3187.2,3186.0,4.64358176]
[1768865434327,0.89793587,3187.1,3186.4,1.31658176]
[1768865434532,0.00404966,3187.2,3186.2,1.31658176]
[1768865434727,0.89831667,3187.1,3186.2,1.31658176]
[1768865434915,0.00404966,3187.2,3186.2,1.31658176]
[1768865435114,0.8983179,3187.1,3186.2,1.31658176]
[1768865435318,0.00404966,3187.2,3186.2,1.31658176]
[1768865435527,0.89849425,3187.1,3186.4,1.31658176]
[1768865435727,0.00404966,3187.2,3186.6,1.31658176]
[1768865436229,1.10512439,3187.8,3186.8,1.31658176]
[1768865436423,1.10512439,3187.8,3186.6,1.31658176]
[1768865436931,1.10512439,3187.8,3186.3,0.00387175]
[1768865437128,0.8984755,3187.7,3186.4,0.00636414]
[1768865437328,0.8984755,3187.7,3186.5,3.327]
[1768865437723,0.8984755,3187.7,3186.3,0.15702]
[1768865437924,0.8984755,3187.7,3186.4,3.327]
[1768865438133,0.8984755,3187.7,3186.3,0.16338414]
[1768865438527,0.8984755,3187.7,3186.4,3.326]
[1768865438831,0.8984755,3187.7,3186.5,3.326]
[1768865439424,1.04330513,3187.7,3186.3,0.16338414]
[1768865439635,0.14482963,3187.5,3185.8,0.0063994]
[1768865439835,0.8984755,3187.4,3185.9,3.325]
[1768865440030,0.8984755,3187.3,3185.9,3.325]
[1768865440231,0.14482963,3187.5,3185.9,0.00639936]
[1768865440437,0.8972243,3187.4,3186.0,3.326]
[1768865440627,0.8972243,3187.3,3185.8,0.15704]
[1768865440829,0.8972243,3187.2,3185.8,0.15704]
[1768865441029,0.14482963,3187.5,3185.9,3.326]
[1768865441230,1.04205128,3187.4,3185.9,3.326]
[1768865441443,0.89722165,3187.3,3185.9,3.326]
[1768865441740,0.14482963,3187.4,3185.9,3.326]
[1768865442038,0.89719626,3187.3,3185.9,3.326]
[1768865442237,0.14482963,3187.4,3185.9,3.326]
[1768865442426,0.8971843,3187.3,3186.0,3.329]
[1768865442632,0.14482963,3187.4,3186.0,3.329]
[1768865442933,0.89718637,3187.3,3186.0,3.329]
[1768865443129,0.14482963,3187.4,3185.8,0.15704]
[1768865443435,0.89719182,3187.3,3186.1,3.33]
[1768865443628,1.10512439,3187.6,3186.1,3.33640864]
[1768865443823,0.89726362,3187.5,3186.1,3.33640864]
[1768865444136,0.89726362,3187.4,3186.1,3.33640864]
[1768865444338,0.89726362,3187.3,3186.1,3.33640864]
[1768865444543,1.10512439,3187.7,3186.1,3.33640864]
[1768865444833,1.10512439,3187.7,3186.2,3.33]
[1768865445145,2.002459,3187.7,3186.2,3.33]
[1768865445443,0.89733461,3187.6,3186.3,0.00742996]
[1768865445633,0.89733461,3187.5,3186.3,0.00742996]
[1768865445832,0.00282716,3187.8,3186.3,0.00742996]
[1768865446030,0.89723681,3187.7,3186.3,0.00742996]
[1768865446340,0.89723681,3187.6,3186.3,0.00742996]
[1768865446528,0.89723681,3187.5,3186.4,0.00742992]
[1768865446841,0.00282716,3187.8,3186.6,1.3211775]
[1768865447043,0.89745295,3187.7,3186.6,1.3211775]
[1768865447340,0.89770242,3187.6,3186.6,1.3211775]
[1768865447634,0.00282716,3187.8,3186.6,1.3211775]
[1768865447835,0.89771647,3187.7,3186.6,1.3211775]
[1768865448140,0.00282716,3187.8,3186.6,1.3211775]
[1768865448341,0.89771819,3187.7,3186.6,1.3211775]
[1768865448531,0.89771819,3187.6,3186.6,1.3211775]
[1768865448732,0.00282716,3187.8,3186.7,0.00743686]
[1768865448931,0.89795787,3187.7,3186.7,0.00743686]
[1768865449128,0.00282716,3187.8,3186.7,0.00743686]
[1768865449328,0.89797645,3187.7,3186.5,0.15701]
[1768865449539,0.00282716,3187.8,3186.6,3.326]
[1768865449737,0.89856134,3187.7,3186.6,3.326]
[1768865449942,0.00282716,3187.8,3186.5,0.15701]
[1768865450143,0.89855771,3187.7,3186.6,3.326]
[1768865450437,0.89906216,3187.6,3185.9,0.00750535]
[1768865450632,0.89900298,3187.5,3186.0,6.62203]
[1768865450828,0.89900298,3187.4,3186.1,3.325]
[1768865451041,0.13137223,3187.6,3186.1,3.325]
[1768865451241,0.89901309,3187.5,3186.1,3.325]
[1768865451433,0.89901309,3187.4,3186.1,3.324]
[1768865451634,0.89901309,3187.3,3186.0,0.15703]
[1768865451833,0.89901309,3187.2,3186.1,3.324]
[1768865452036,0.13137223,3187.4,3186.1,3.324]
[1768865452240,0.89954359,3187.3,3186.1,3.324]
[1768865452437,0.89954359,3187.2,3186.1,3.324]
[1768865452639,0.89954359,3187.1,3186.1,3.324]
[1768865452840,0.13137223,3187.4,3186.1,3.324]
[1768865453039,0.8999391,3187.3,3186.1,3.324]
[1768865453345,0.8999391,3187.2,3186.1,3.324]
[1768865453540,0.8999391,3187.1,3186.2,0.00581742]
[1768865453736,1.10512439,3187.6,3186.2,0.00581742]
[1768865453943,0.90027134,3187.5,3186.5,1.319565]
[1768865454147,0.89445395,3187.4,3186.6,0.00581739]
[1768865454442,1.10795155,3187.8,3186.6,0.00581739]
[1768865457235,0.00282716,3187.8,3186.7,3.323]
[1768865458641,0.00282716,3187.8,3186.8,3.322]
[1768865458852,0.13863226,3187.8,3186.7,3.322]
[1768865459357,0.13863226,3187.8,3186.6,0.157]
[1768865460339,0.13863226,3187.8,3186.1,1.31374758]
[1768865460546,0.13863226,3187.8,3186.2,6.46]
[1768865460851,0.13863226,3187.8,3186.2,3.32]
[1768865461736,0.13863226,3187.8,3186.2,3.319]
[1768865461941,0.13863226,3187.8,3186.3,0.15702]
[1768865462146,0.00282716,3187.8,3186.6,1.47074758]
[1768865462653,0.00282716,3187.8,3186.6,1.31374758]
[1768865462853,0.00282716,3187.8,3186.2,3.319]
[1768865463256,0.00282716,3187.8,3186.3,40.8]
[1768865463744,0.00282716,3187.8,3186.8,0.15699]
[1768865463943,0.00282716,3187.8,3186.9,3.319]
[1768865465946,0.00282716,3187.8,3187.0,0.15698]
[1768865466151,0.00282716,3187.8,3187.1,0.15698]
[1768865468752,0.00282716,3187.8,3187.2,40.8]
[1768865469445,1.11905716,3189.4,3188.0,0.15842883]
[1768865469646,0.90018333,3189.3,3188.1,3.327]
[1768865469945,0.1358051,3189.5,3187.6,0.00149883]
[1768865469946,1.03588427,3189.2,3187.6,0.00149883]
[1768865470151,0.1358051,3189.0,3187.4,0.15696]
[1768865470356,0.1358051,3188.8,3187.5,6.465]
[1768865470553,0.1358051,3188.8,3187.4,0.15696]
[1768865470849,0.1358051,3188.8,3187.6,3.327]
[1768865472741,0.1358051,3188.8,3187.7,3.33]
[1768865473349,0.2926551,3189.8,3187.9,0.15694]
[1768865473546,1.66564278,3190.7,3188.6,0.1569]
[1768865473738,1.66564278,3190.7,3189.1,0.15688]
[1768865473739,1.25974366,3190.6,3189.1,0.15688]
[1768865473938,0.88084642,3190.5,3189.1,0.15688]
[1768865474145,1.66564278,3191.0,3189.1,0.15688]
[1768865474146,0.1358051,3190.9,3189.1,3.329]
[1768865474341,0.1358051,3190.4,3188.9,3.329]
[1768865475151,0.1358051,3190.2,3188.7,3.328]
[1768865475355,0.1358051,3190.0,3188.7,3.328]
[1768865475746,0.1358051,3190.0,3188.2,0.0008175]
[1768865476250,0.87428198,3189.9,3188.3,3.328]
[1768865476451,0.1358051,3189.7,3188.1,0.15693]
[1768865476655,0.1358051,3189.7,3188.2,3.329]
[1768865477551,0.1358051,3189.7,3187.7,0.00081747]
[1768865477752,0.1358051,3189.7,3187.9,0.00188722]
[1768865477948,0.15683,3190.1,3187.9,0.00188722]
[1768865478143,0.87355588,3190.0,3188.1,0.0018872]
[1768865478456,0.1358051,3190.7,3188.4,0.0018872]
[1768865478652,0.87337856,3190.6,3188.9,0.0018872]
[1768865478856,0.00383041,3190.9,3189.1,0.0018872]
[1768865479154,0.87350888,3190.8,3189.3,0.00244245]
[1768865479349,0.00383041,3190.9,3189.3,0.00535103]
[1768865479750,0.00383041,3190.9,3189.4,0.00244245]
[1768865479956,0.00383041,3190.9,3189.5,6.468]
[1768865480158,0.00383041,3190.9,3189.6,3.329]
[1768865480353,0.00383041,3190.9,3189.6,3.33144243]
[1768865480548,0.00383041,3190.9,3189.7,0.00244243]
[1768865481061,0.00383041,3190.9,3189.8,3.328]
[1768865482559,0.00383041,3190.9,3189.7,3.327]
[1768865483057,0.00383041,3190.9,3189.5,0.15686]
[1768865483359,0.00383041,3190.9,3189.6,3.326]
[1768865483656,0.14668471,3190.9,3189.3,0.00290858]
[1768865483957,0.00383041,3190.9,3189.3,3.48477858]
[1768865484151,0.00383041,3190.9,3189.4,0.15687]
[1768865484351,0.00383041,3190.9,3189.3,3.32790858]
[1768865484352,0.00383041,3190.9,3189.5,40.95686]
[1768865484654,0.00383041,3190.9,3189.5,40.8]
[1768865484853,0.00383041,3190.9,3189.9,0.15684]
[1768865485054,0.00383041,3190.9,3190.0,3.325]
[1768865485759,0.1428543,3191.9,3190.1,0.15683]
[1768865486651,0.14618671,3191.9,3190.1,0.15683]
[1768865487253,0.00333241,3191.9,3190.4,0.15682]
[1768865487554,0.00333241,3191.9,3190.5,0.15681]
[1768865488850,0.00333241,3191.9,3190.5,3.48081]
[1768865489252,0.00333241,3191.9,3190.6,0.15681]
[1768865489557,0.00333241,3191.9,3190.6,3.47981]
[1768865489754,0.00333241,3191.9,3190.7,40.8]
[1768865490249,0.1428543,3192.9,3191.1,0.15678]
[1768865490457,3.29366,3193.6,3190.7,40.8]
[1768865490458,0.1428543,3193.4,3191.3,0.15677]
[1768865490659,0.86901338,3193.3,3191.3,0.15677]
[1768865490859,0.86901338,3193.2,3191.3,0.15677]
[1768865491055,0.1428543,3193.3,3191.3,0.15677]
[1768865491253,0.00321361,3193.3,3191.9,0.15674]
[1768865491453,0.00321361,3193.3,3191.9,0.16005958]
[1768865491754,0.14606791,3193.3,3191.9,0.00331958]
[1768865492366,0.00321361,3193.3,3191.9,0.00331958]
[1768865492565,0.14606791,3193.3,3191.9,0.00331958]
[1768865495359,0.1428543,3193.1,3191.9,0.00331958]
[1768865496264,0.00321361,3193.3,3191.9,0.16005958]
[1768865496459,0.00321361,3193.3,3192.1,0.15673]
[1768865496658,0.00321361,3193.3,3192.2,0.15673]
[1768865496854,0.00321361,3193.3,3191.9,0.00331958]
[1768865497059,0.00321361,3193.3,3192.0,40.8]
[1768865497259,0.00321361,3193.3,3192.4,0.15672]
[1768865498462,0.00321361,3193.3,3192.6,0.15671]
[1768865498675,0.1428543,3194.8,3192.3,3.318]
[1768865498974,0.1428543,3194.8,3192.4,6.455]
[1768865499562,0.1428543,3194.8,3192.5,6.454]
[1768865499762,0.14590886,3194.8,3192.5,6.454]
[1768865499962,0.14590886,3194.8,3192.3,1.88409593]
[1768865500269,0.14590886,3194.8,3193.0,0.15669]
[1768865500875,0.14590886,3194.8,3193.1,0.15668]
[1768865501068,0.14590886,3194.8,3193.4,0.15667]
[1768865501465,0.14590886,3194.8,3193.1,0.524]
[1768865501658,0.00305456,3194.8,3193.1,0.524]
[1768865501875,0.00305456,3194.8,3193.2,40.8]
[1768865502267,0.00305456,3194.8,3193.7,0.15665]
[1768865503684,1.48557824,3195.5,3193.2,40.8]
[1768865503973,0.13610902,3196.6,3194.7,0.15661]
[1768865504178,0.13610902,3196.6,3194.6,3.317]
[1768865504179,0.86187248,3196.5,3194.6,3.317]
[1768865504385,0.13610902,3196.6,3195.1,0.15659]
[1768865504778,0.13610902,3196.4,3195.1,0.0032383]
[1768865505578,0.13610902,3196.4,3195.1,0.1598283]
[1768865505774,0.00220853,3196.6,3195.4,0.15657]
[1768865506082,0.00220853,3196.6,3195.5,0.15657]
[1768865506284,0.00220853,3196.6,3195.9,0.15654]
[1768865506473,0.00220853,3196.6,3195.7,0.15655]
[1768865506672,0.00220853,3196.6,3195.2,0.15658]
[1768865507280,0.00220853,3196.6,3195.5,0.15657]
[1768865507481,0.13831755,3196.6,3195.5,0.15657]
[1768865507683,0.13831755,3196.6,3195.1,0.0032383]
[1768865508182,0.13831755,3196.6,3194.8,0.1566]
[1768865508379,0.13610902,3196.4,3194.8,0.1566]
[1768865508878,0.13610902,3196.4,3194.2,0.256]
[1768865509187,0.13610902,3196.4,3194.3,40.8]
[1768865509383,0.13610902,3196.4,3194.3,42.086]
[1768865509782,0.13610902,3196.0,3194.2,0.0038209]
[1768865509987,0.13610902,3195.5,3194.2,0.0038209]
[1768865510184,0.13610902,3195.4,3193.4,3.133]
[1768865510484,0.13610902,3195.4,3193.4,3.28967]
[1768865510879,0.13610902,3195.4,3193.5,0.15666]
[1768865511283,0.13610902,3195.0,3193.5,0.16035222]
[1768865512382,0.13610902,3195.0,3193.6,0.15666]
[1768865513185,0.13610902,3195.0,3191.4,0.24755754]
[1768865513186,0.14306164,3194.4,3193.0,0.15669]
[1768865513578,0.14306164,3194.2,3193.0,0.15669]
[1768865513782,0.14306164,3194.8,3192.7,1.88409593]
[1768865513979,0.14306164,3194.8,3193.6,0.15666]
[1768865514489,0.14690379,3194.8,3193.6,0.16009357]
[1768865514785,0.14690379,3194.8,3193.8,0.15665]
[1768865514979,0.14690379,3194.8,3193.6,0.00343357]
[1768865515575,0.14306164,3194.6,3192.0,1.88409593]
[1768865515781,0.14306164,3194.6,3193.0,0.15668]
[1768865516071,0.14306164,3194.6,3193.1,0.15668]
[1768865516277,0.00384215,3194.8,3192.5,1.88409593]
[1768865516481,0.86349713,3194.7,3192.5,1.88409593]
[1768865516676,0.86349713,3194.6,3192.5,1.88719561]
[1768865516883,0.00384215,3194.8,3193.2,0.15668]
[1768865517085,0.86348635,3194.7,3193.2,0.15668]
[1768865517281,0.86348635,3194.6,3193.2,0.15668]
[1768865517489,0.00384215,3194.8,3193.2,0.15668]
[1768865517691,0.8641804,3194.7,3192.5,0.00309968]
[1768865517889,0.00384215,3194.8,3193.2,0.15668]
[1768865518192,0.86417328,3194.7,3193.2,0.15668]
[1768865518393,0.00384215,3194.8,3193.2,0.15668]
[1768865518591,0.86482135,3194.7,3193.2,0.15668]
[1768865518788,1.88409593,3194.1,3192.5,0.15980968]
[1768865519088,0.86461934,3194.0,3192.5,0.15980968]
[1768865519289,0.14306164,3194.4,3192.5,0.15980968]
[1768865519587,0.86521797,3194.3,3192.5,0.15980968]
[1768865519787,0.86521797,3194.2,3192.5,0.15980968]
[1768865519985,0.86521797,3194.1,3192.6,0.15671]
[1768865520188,0.86521797,3194.0,3192.6,0.15671]
[1768865520387,0.86521797,3193.9,3192.6,0.15671]
[1768865520588,1.25004383,3194.4,3192.6,0.15671]
[1768865520789,0.14306164,3194.0,3192.5,0.00309968]
[1768865520988,0.14306164,3193.8,3192.5,0.00309968]
[1768865521188,0.8663181,3193.7,3192.5,0.00309968]
[1768865521490,1.00937974,3193.6,3192.5,0.00309968]
[1768865521691,0.8663181,3193.5,3192.5,0.00309968]
[1768865522889,0.8663181,3193.5,3192.0,0.15674]
[1768865523994,0.8663181,3193.5,3192.0,0.15978199]
[1768865524385,1.00937974,3193.5,3192.0,0.15978199]
[1768865524586,0.8663181,3193.4,3192.0,0.15978199]
[1768865524786,0.8663181,3193.3,3192.0,0.15978199]
[1768865524988,0.14306164,3193.5,3192.1,0.15673]
[1768865525295,0.86357329,3193.4,3192.1,0.15673]
[1768865525497,0.86357329,3193.3,3192.1,0.15673]
[1768865525796,0.14306164,3193.5,3192.1,0.15673]
[1768865526097,0.86378773,3193.4,3192.1,0.15673]
[1768865526298,0.86378773,3193.3,3192.1,0.15673]
[1768865526593,0.86398668,3193.2,3192.1,0.15673]
[1768865526794,0.14306164,3193.5,3192.1,0.15673]
[1768865526996,0.86398694,3193.4,3192.1,0.15673]
[1768865527194,0.86398694,3193.3,3192.1,0.15673]
[1768865527393,0.86398694,3193.2,3192.1,0.15673]
[1768865527693,0.14306164,3193.5,3192.1,0.15673]
[1768865527888,0.86389324,3193.4,3192.1,0.15673]
[1768865528196,0.86389324,3193.3,3192.1,0.15673]
[1768865528397,0.86389324,3193.2,3192.1,0.15673]
[1768865528692,0.14306164,3193.5,3192.1,0.15673]
[1768865528995,1.00682963,3193.4,3192.1,0.15673]
[1768865529197,0.86376799,3193.3,3192.1,0.15673]
[1768865530190,0.14306164,3193.2,3192.0,0.00304199]
[1768865530388,0.14306164,3193.0,3192.0,0.00304199]
[1768865531700,0.14306164,3192.8,3190.7,3.2908]
[1768865531896,0.14306164,3192.6,3190.7,0.1568]
[1768865532088,0.15669,3193.0,3190.7,1.88409593]
[1768865532286,1.66564278,3193.2,3190.5,3.134]
[1768865532287,1.11300263,3193.5,3191.2,1.88409593]
[1768865532490,0.86263681,3193.4,3192.1,0.15673]
[1768865532695,0.14306164,3194.1,3192.2,0.15673]
[1768865532896,0.14306164,3194.1,3191.8,40.8]
[1768865532897,0.86280041,3194.0,3191.8,40.8]
[1768865533094,0.14306164,3194.1,3192.2,1.88409593]
[1768865533995,0.15662,3194.4,3192.2,1.88409593]
[1768865534195,0.86361536,3194.3,3192.2,1.88409593]
[1768865534405,0.86396615,3194.2,3192.2,1.88409593]
[1768865534594,0.14306164,3194.3,3192.5,0.15671]
[1768865534797,1.0070278,3194.2,3192.5,0.15671]
[1768865534991,0.14306164,3194.2,3192.5,0.15671]
[1768865535996,0.15662,3194.4,3192.5,0.15671]
[1768865536197,0.8645693,3194.3,3192.5,0.15671]
[1768865536398,0.14306164,3194.7,3192.7,1.88409593]
[1768865536604,0.86563827,3194.6,3192.7,2.04079593]
[1768865536799,0.00384215,3194.8,3192.7,2.04079593]
[1768865537003,0.86565092,3194.7,3192.7,2.04079593]
[1768865537306,0.86565092,3194.6,3192.7,2.04079593]
[1768865537497,0.86565092,3194.5,3192.7,2.04079593]
[1768865537697,0.00384215,3194.8,3192.7,2.04079593]
[1768865537898,0.86653851,3194.7,3192.7,2.04079593]
[1768865538094,0.86653851,3194.6,3192.7,2.04079593]
[1768865538299,0.00384215,3194.8,3192.7,2.04079593]
[1768865538499,0.86714155,3194.7,3192.7,2.04079593]
[1768865538706,0.86714155,3194.6,3192.7,2.04079593]
[1768865538894,0.00384215,3194.8,3192.8,0.1567]
[1768865539203,0.00384215,3194.8,3192.7,1.88409593]
[1768865539204,0.86713225,3194.7,3192.9,0.15669]
[1768865539407,0.86713225,3194.6,3193.0,0.15669]
[1768865539598,0.86713225,3194.5,3193.0,0.15669]
[1768865539799,0.00384215,3194.8,3193.0,0.15669]
[1768865539999,0.86786901,3194.7,3193.1,40.8]
[1768865540199,0.86786901,3194.6,3193.1,40.8]
[1768865540400,0.00384215,3194.8,3193.1,40.8]
[1768865540596,0.86791573,3194.7,3193.1,40.8]
[1768865540903,0.86791573,3194.6,3193.1,40.8]
[1768865541104,0.00384215,3194.8,3193.1,40.8]
[1768865541401,0.86754953,3194.7,3193.0,3.29069]
[1768865541604,0.86754953,3194.6,3193.0,3.29069]
[1768865541799,0.00384215,3194.8,3193.0,3.29069]
[1768865542001,0.86738397,3194.7,3193.0,3.29069]
[1768865542199,0.86738397,3194.6,3193.0,3.29069]
[1768865542398,0.00384215,3194.8,3193.0,3.29069]
[1768865542597,0.86759897,3194.7,3193.0,3.29069]
[1768865542905,0.86759897,3194.6,3193.0,3.29069]
[1768865543102,0.00384215,3194.8,3193.0,3.134]
[1768865543304,0.86774884,3194.7,3193.3,0.15667]
[1768865543506,0.00384215,3194.8,3193.3,3.45267]
[1768865543507,0.14669657,3194.8,3193.3,3.45267]
[1768865543702,0.86757575,3194.7,3193.3,3.45267]
[1768865544007,0.86754409,3194.6,3192.9,3.297]
[1768865544211,0.14669657,3194.8,3192.9,3.297]
[1768865544409,0.86753801,3194.7,3193.1,0.15668]
[1768865544609,0.14669657,3194.8,3193.1,0.15668]
[1768865544805,0.86754661,3194.7,3193.1,0.15668]
[1768865545104,0.00384215,3194.8,3193.1,1.88409593]
[1768865545306,1.11300263,3195.7,3194.1,1.88409593]
[1768865545505,0.86746426,3195.6,3194.3,0.15662]
[1768865545713,0.14285442,3196.3,3194.4,0.15662]
[1768865545907,0.86760498,3196.2,3194.4,0.15662]
[1768865546108,0.86760498,3196.1,3194.4,0.15662]
[1768865546310,0.14285442,3196.3,3194.4,0.15662]
[1768865546506,0.86723855,3196.2,3194.6,2.04070593]
[1768865546710,0.00371391,3196.3,3194.6,1.88409593]
[1768865547413,0.00371391,3196.3,3195.1,1.88409593]
[1768865547608,0.14285442,3197.8,3195.6,1.88409593]
[1768865547802,0.14285442,3197.6,3195.7,4.434]
[1768865548003,0.14285442,3197.4,3195.2,0.15658]
[1768865548202,0.14285442,3197.2,3195.3,4.633]
[1768865548398,0.14285442,3197.2,3195.3,3.296]
[1768865548600,0.14285442,3197.0,3195.2,3.296]
[1768865548805,0.14285442,3197.0,3194.5,0.15661]
[1768865549203,0.14285442,3196.8,3194.6,4.145]
[1768865549504,0.14285442,3196.6,3194.5,0.15661]
[1768865549708,0.14285442,3196.6,3194.5,3.45161]
[1768865550112,0.14285442,3196.6,3194.4,3.29728345]
[1768865550314,0.14285442,3196.3,3194.4,0.00328345]
[1768865553423,0.14285442,3196.2,3194.4,0.00328345]
[1768865555623,0.14285442,3196.0,3194.4,0.00328345]
[1768865556022,0.29940442,3196.0,3194.4,0.00328345]
[1768865556221,0.14285442,3195.9,3194.4,0.00328345]
[1768865557618,0.14285442,3195.8,3194.4,0.00328345]
[1768865557815,0.14285442,3195.2,3193.5,3.132]
[1768865558015,0.14285442,3195.0,3192.8,0.1567]
[1768865558217,0.14285442,3195.8,3193.3,3.44967]
[1768865558414,0.14285442,3195.8,3193.7,1.88409593]
[1768865558812,0.14285442,3195.7,3193.8,5.336]
[1768865559120,0.14285442,3195.6,3193.9,3.292]
[1768865559322,0.14285442,3195.6,3193.7,0.00235203]
[1768865559516,0.14285442,3195.6,3193.8,3.291]
[1768865560626,0.14285442,3195.6,3193.7,0.00235203]
[1768865560925,0.14285442,3195.6,3193.8,3.29]
[1768865561423,0.13364829,3196.1,3194.0,0.15664]
[1768865563423,0.86762207,3196.0,3194.0,0.15664]
[1768865563621,0.13364829,3196.1,3194.0,0.15664]
[1768865563622,0.13364829,3196.1,3194.1,40.8]
[1768865563927,0.86761992,3196.0,3194.1,40.8]
[1768865564126,0.13364829,3196.1,3194.1,40.95663]
[1768865564728,0.13364829,3195.7,3194.0,3.29]
[1768865565025,0.15655,3195.8,3194.0,3.29]
[1768865565219,0.15655,3195.8,3194.1,40.8]
[1768865565622,0.29019829,3195.8,3193.9,0.15664]
[1768865565820,0.13364829,3195.6,3194.0,4.263]
[1768865566324,0.13364829,3195.6,3193.9,0.15664]
[1768865566325,0.15655,3195.8,3193.9,40.95664]
[1768865566521,0.13364829,3196.1,3193.9,40.95664]
[1768865566522,0.13364829,3196.1,3194.1,0.15663]
[1768865566721,0.86872627,3196.0,3194.1,0.15663]
[1768865566929,0.13364829,3196.1,3194.2,0.15663]
[1768865567121,0.86876004,3196.0,3194.2,0.15663]
[1768865567429,0.13364829,3196.1,3194.2,0.15663]
[1768865567728,1.24665092,3196.6,3194.6,0.15661]
[1768865567930,0.86900586,3196.5,3194.6,0.15661]
[1768865568127,0.86900586,3196.4,3194.6,0.15661]
[1768865568327,0.86900586,3196.3,3194.6,0.15661]
[1768865568521,0.86900586,3196.2,3194.6,0.15661]
[1768865568729,0.86900586,3196.1,3194.7,3.293]
[1768865568928,0.13364829,3196.4,3194.8,3.293]
[1768865569231,0.86915882,3196.3,3194.8,3.293]
[1768865569536,0.86915882,3196.2,3194.8,3.293]
[1768865569831,0.86915882,3196.1,3194.8,3.293]
[1768865570035,0.13364829,3196.4,3194.8,3.293]
[1768865570324,0.86935,3196.3,3194.8,3.293]
[1768865570529,0.86935,3196.2,3194.8,3.293]
[1768865570731,0.86935,3196.1,3194.8,3.293]
[1768865570922,0.86935,3196.0,3194.8,3.293]
[1768865571128,0.13364829,3196.4,3194.8,3.293]
[1768865571325,1.24665092,3196.4,3194.8,3.293]
[1768865571525,0.86956883,3196.3,3194.8,3.293]
[1768865573327,1.98257146,3196.3,3194.8,3.293]
[1768865574433,0.86956883,3196.2,3194.8,3.293]
[1768865574629,0.86956883,3196.1,3194.8,3.293]
[1768865574832,0.86956883,3196.0,3194.8,3.287]
[1768865575035,1.66564278,3196.4,3194.6,0.15661]
[1768865575036,0.86956883,3195.9,3194.6,0.15661]
[1768865575231,0.86956883,3195.8,3194.5,3.287]
[1768865575432,0.86956883,3195.7,3194.5,3.287]
[1768865575740,0.13555948,3196.0,3194.5,3.287]
[1768865575940,0.87121533,3195.9,3194.5,3.287]
[1768865576141,1.00677481,3195.8,3194.2,0.15663]
[1768865576337,1.00677481,3195.8,3194.3,3.287]
[1768865576338,0.87121533,3195.7,3194.3,3.287]
[1768865576638,0.87121533,3195.7,3194.2,3.44463]
[1768865577027,0.13555948,3195.6,3193.9,40.8]
[1768865577234,0.13555948,3195.4,3194.0,3.289]
[1768865577537,0.87121533,3195.3,3194.0,3.289]
[1768865578341,0.87121533,3195.3,3193.7,0.15900203]
[1768865578539,0.87121533,3195.3,3193.8,3.289]
[1768865579452,0.87121533,3195.3,3193.7,0.15900203]
[1768865579942,1.00677481,3195.3,3193.8,1.846]
[1768865580145,1.00677481,3195.2,3193.7,0.15900203]
[1768865580335,0.87121533,3195.1,3193.7,0.15900203]